fUSD/lending_fUSD_20251223
["ID","MTS","AMOUNT","RATE_DAILY","PERIOD"]
[399581200,1766521846241,-4363.76389369,0.00017,2]
[399581201,1766521846288,-6811.75580573,0.00017,2]
[399581202,1766521846300,-404.73403491,0.00017,2]
[399581309,1766522953018,-456.90710145,0.00013699,2]
[399581312,1766523031918,-13.82289855,0.00013699,2]
[399581313,1766523031930,-177.419,0.00015118,2]
[399581314,1766523031940,-517.063,0.00015118,2]
[399581315,1766523031950,-171.15253757,0.00015325,2]
[399581316,1766523031972,-1028.84746243,0.00015325,2]
[399581317,1766523031983,-300.0,0.00015325,2]
[399581318,1766523031993,-159.52,0.00015325,2]
[399581319,1766523032003,-325.36068313,0.00015326,2]
[399581320,1766523032014,-313.65172951,0.00015326,2]
[399581321,1766523032029,-10957.99854066,0.00015326,2]
[399581322,1766523032070,-553.83037954,0.00015326,2]
[399581323,1766523032086,-2286.90336051,0.00015326,2]
[399581324,1766523032099,-664.63807819,0.00015326,2]
[399581325,1766523032121,-3518.22315239,0.00015326,2]
[399581326,1766523032134,-3311.2651296,0.00015326,2]
[399581327,1766523032144,-151.0,0.00015417,2]
[399581328,1766523032157,-129.93487038,0.00015417,2]
[399581329,1766523032179,-21.06512962,0.00015417,2]
[399581330,1766523032189,-151.0,0.00015417,2]
[399581331,1766523032198,-115.51355501,0.00015423,2]
[399581333,1766523032211,-35.48644499,0.00015423,2]
[399581335,1766523032221,-151.0,0.00015423,2]
[399581336,1766523032230,-300.0,0.00015424,2]
[399581338,1766523032239,-706.45716663,0.00015425,2]
[399581340,1766523032249,-272.65,0.00015425,2]
[399581342,1766523032259,-500.0,0.00015425,2]
[399581344,1766523032268,-500.0,0.00015425,2]
[399581347,1766523032279,-500.0,0.00015425,2]
[399581349,1766523032288,-500.0,0.00015425,2]
[399581351,1766523032298,-500.0,0.00015425,2]
[399581353,1766523032308,-500.0,0.00015425,2]
[399581355,1766523032318,-389.98761819,0.00015425,2]
[399581357,1766523032328,-500.0,0.00015425,2]
[399581359,1766523032338,-500.0,0.00015425,2]
[399581361,1766523032347,-500.0,0.00015425,2]
[399581362,1766523032358,-500.0,0.00015425,2]
[399581364,1766523032368,-500.0,0.00015425,2]
[399581366,1766523032378,-500.0,0.00015425,2]
[399581368,1766523032388,-500.0,0.00015425,2]
[399581370,1766523032397,-500.0,0.00015425,2]
[399581372,1766523032407,-500.0,0.00015425,2]
[399581374,1766523032418,-500.0,0.00015425,2]
[399581376,1766523032427,-499.99999999,0.00015425,2]
[399581377,1766523032437,-500.0,0.00015425,2]
[399581379,1766523032448,-500.0,0.00015425,2]
[399581381,1766523032458,-500.0,0.00015425,2]
[399581383,1766523032468,-500.0,0.00015425,2]
[399581385,1766523032478,-500.0,0.00015425,2]
[399581387,1766523032489,-500.0,0.00015425,2]
[399581389,1766523032499,-500.0,0.00015425,2]
[399581391,1766523032509,-500.0,0.00015425,2]
[399581393,1766523032519,-500.0,0.00015425,2]
[399581394,1766523032528,-500.0,0.00015425,2]
[399581396,1766523032537,-500.0,0.00015425,2]
[399581398,1766523032547,-500.0,0.00015425,2]
[399581400,1766523032557,-500.0,0.00015425,2]
[399581402,1766523032566,-500.0,0.00015425,2]
[399581403,1766523032576,-154.67274905,0.00015425,2]
[399581405,1766523032586,-500.0,0.00015425,2]
[399581407,1766523032596,-500.0,0.00015425,2]
[399581409,1766523032605,-500.0,0.00015425,2]
[399581410,1766523032615,-500.0,0.00015425,2]
[399581411,1766523032624,-500.0,0.00015425,2]
[399581412,1766523032634,-333.48062858,0.00015426,2]
[399581413,1766523032644,-3928.1740027,0.00015426,2]
[399581414,1766523038056,-648.99146823,0.00015426,2]
[399581415,1766523038068,-6632.64964122,0.00015426,2]
[399581416,1766523038083,-11661.51930947,0.00015426,2]
[399581417,1766523038095,-135285.62387498,0.00015426,2]
[399581418,1766523038107,-2724.7365,0.00015426,2]
[399581419,1766523038120,-1122.70891671,0.00015426,2]
[399581420,1766523038135,-2433.59788731,0.00015426,2]
[399581421,1766523038148,-835561.99839938,0.00015426,2]
[399581422,1766523038158,-557.16973837,0.00015426,2]
[399581423,1766523038168,-33501.2974,0.00015526,2]
[399581424,1766523038178,-272.65,0.00015699,2]
[399581425,1766523038188,-151.0,0.000159,2]
[399581426,1766523038198,-500.0,0.00015926,2]
[399581427,1766523038208,-500.0,0.00015926,2]
[399581428,1766523038218,-500.0,0.00015926,2]
[399581429,1766523038229,-500.0,0.00015926,2]
[399581430,1766523038239,-500.0,0.00015926,2]
[399581431,1766523038248,-272.66,0.00015973,2]
[399581432,1766523038258,-200.0,0.00016115,2]
[399581433,1766523038268,-1107.0,0.00016259,2]
[399581434,1766523038278,-150.0,0.00016287,2]
[399581436,1766523038288,-500.0,0.00016373,2]
[399581438,1766523038299,-500.0,0.00016373,2]
[399581439,1766523038308,-1107.0,0.00016437,2]
[399581440,1766523038318,-193.0,0.00016438,2]
[399581442,1766523038328,-1545.45626587,0.00016438,2]
[399581444,1766523038338,-500.0,0.00016438,2]
[399581446,1766523038348,-500.0,0.00016438,2]
[399581448,1766523038358,-500.0,0.00016438,2]
[399581450,1766523038367,-500.0,0.00016438,2]
[399581452,1766523038378,-500.0,0.00016438,2]
[399581454,1766523038388,-500.0,0.00016438,2]
[399581456,1766523038397,-162.71993528,0.00016438,2]
[399581458,1766523038407,-500.0,0.00016438,2]
[399581460,1766523038417,-500.0,0.00016438,2]
[399581461,1766523038427,-500.0,0.00016438,2]
[399581463,1766523038436,-500.0,0.00016438,2]
[399581465,1766523038446,-500.0,0.00016438,2]
[399581467,1766523038455,-500.0,0.00016438,2]
[399581469,1766523038465,-500.0,0.00016438,2]
[399581471,1766523038476,-500.0,0.00016438,2]
[399581473,1766523038485,-500.0,0.00016438,2]
[399581475,1766523038495,-500.0,0.00016438,2]
[399581477,1766523038505,-500.0,0.00016438,2]
[399581478,1766523038514,-500.0,0.00016438,2]
[399581480,1766523038524,-500.0,0.00016438,2]
[399581482,1766523038534,-500.0,0.00016438,2]
[399581484,1766523038544,-500.0,0.00016438,2]
[399581486,1766523038554,-714.0,0.00016461,2]
[399581488,1766523038563,-361.29,0.00016545,2]
[399581490,1766523038573,-510.0,0.0001655,2]
[399581492,1766523038583,-1107.0,0.00016602,2]
[399581494,1766523038594,-1107.0,0.00016706,2]
[399581496,1766523038604,-1107.0,0.00016717,2]
[399581498,1766523038614,-420.0,0.00016767,2]
[399581500,1766523038624,-198.94914877,0.00016781,2]
[399581502,1766523038633,-1107.0,0.00016795,2]
[399581504,1766523038643,-1107.0,0.00016809,2]
[399581506,1766523038652,-27289.36240859,0.0001683,2]
[399581508,1766523038663,-1107.0,0.00016837,2]
[399581510,1766523038673,-1680.0,0.00016852,2]
[399581512,1766523038683,-201.0,0.000169,2]
[399581514,1766523038693,-166.75347231,0.000169,2]
[399581516,1766523038703,-792.59499025,0.000169,2]
[399581518,1766523038712,-1000.0,0.00016921,2]
[399581520,1766523038722,-1000.0,0.00016921,2]
[399581522,1766523038732,-1107.0,0.00016972,2]
[399581524,1766523038741,-500.0,0.00016972,2]
[399581526,1766523038750,-500.0,0.00016973,2]
[399581528,1766523038760,-311.84683956,0.00016973,2]
[399581530,1766523038771,-500.0,0.00016973,2]
[399581532,1766523038782,-500.0,0.00016973,2]
[399581534,1766523038796,-500.0,0.00016973,2]
[399581535,1766523038805,-500.0,0.00016973,2]
[399581537,1766523038815,-500.0,0.00016973,2]
[399581539,1766523038824,-500.0,0.00016973,2]
[399581541,1766523038834,-510.66155099,0.00016973,2]
[399581543,1766523038844,-500.77244015,0.00016973,2]
[399581578,1766523039221,-500.0,0.00016973,2]
[399581580,1766523039231,-500.0,0.00016973,2]
[399581582,1766523039241,-452.51812449,0.00016973,2]
[399581584,1766523039250,-500.0,0.00016973,2]
[399581586,1766523039260,-500.0,0.00016973,2]
[399581588,1766523039270,-284.26223188,0.00016973,2]
[399581590,1766523039279,-501.99535785,0.00016973,2]
[399581592,1766523039289,-500.0,0.00016973,2]
[399581594,1766523039298,-500.0,0.00016973,2]
[399581596,1766523039307,-500.0,0.00016973,2]
[399581597,1766523039318,-500.0,0.00016973,2]
[399581599,1766523039327,-162.32244803,0.00016973,2]
[399581601,1766523039337,-500.0,0.00016973,2]
[399581603,1766523039347,-500.0,0.00016973,2]
[399581605,1766523039355,-500.0,0.00016973,2]
[399581607,1766523039365,-500.0,0.00016973,2]
[399581609,1766523039374,-500.0,0.00016973,2]
[399581611,1766523039383,-500.0,0.00016973,2]
[399581612,1766523039392,-500.0,0.00016973,2]
[399581614,1766523039401,-500.0,0.00016973,2]
[399581616,1766523039411,-500.0,0.00016973,2]
[399581618,1766523039420,-500.0,0.00016973,2]
[399581620,1766523039430,-160.24000701,0.00016973,2]
[399581622,1766523039439,-160.24081574,0.00016973,2]
[399581624,1766523039448,-177.58211641,0.00016973,2]
[399581626,1766523039458,-154.81071554,0.00016973,2]
[399581628,1766523039468,-500.0,0.00016973,2]
[399581630,1766523039478,-403.81516004,0.0001699,2]
[399581632,1766523039487,-151.0,0.00016997,2]
[399581634,1766523039496,-151.0,0.00016997,2]
[399581636,1766523039506,-151.0,0.00016997,2]
[399581638,1766523039516,-500.0,0.00016999,2]
[399581640,1766523039525,-500.0,0.00016999,2]
[399581641,1766523039534,-500.0,0.00016999,2]
[399581643,1766523039543,-500.0,0.00016999,2]
[399581645,1766523039553,-516.24,0.00016999,2]
[399581647,1766523039562,-500.0,0.00016999,2]
[399581649,1766523039571,-500.0,0.00016999,2]
[399581651,1766523039580,-500.0,0.00016999,2]
[399581653,1766523039589,-500.0,0.00016999,2]
[399581655,1766523039599,-500.0,0.00016999,2]
[399581657,1766523039608,-500.0,0.00016999,2]
[399581659,1766523039617,-500.0,0.00016999,2]
[399581661,1766523039627,-355.12912067,0.00016999,2]
[399581663,1766523039636,-265.40708038,0.00016999,2]
[399581665,1766523039645,-475.24973491,0.00016999,2]
[399581667,1766523039654,-401408.90264654,0.00017,2]
[399581668,1766523039663,-246033.21089459,0.00017,2]
[399581670,1766523039673,-200.0,0.00017,2]
[399581672,1766523039683,-4107.524587,0.00017,2]
[399581674,1766523039692,-3627.7630688,0.00017,2]
[399581676,1766523039701,-200.0,0.00017,2]
[399581678,1766523039713,-619564.3771311,0.00017,2]
[399581681,1766523039732,-2400.58770402,0.00017,2]
[399581683,1766523039743,-3379.8,0.00017,2]
[399581685,1766523039754,-5122.48611647,0.00017,2]
[399581687,1766523039766,-125935.27268251,0.00017,2]
[399581689,1766523039775,-2213.9049414,0.00017,2]
[399581691,1766523039785,-250.0,0.00017,2]
[399581693,1766523039795,-33898.85759897,0.00017,2]
[399581718,1766523040045,-3761.56668137,0.00017,2]
[399581743,1766523040842,-296.26013916,0.00017,2]
[399581744,1766523040852,-151.0,0.00017,2]
[399581745,1766523040861,-151.0,0.00017,2]
[399581746,1766523040872,-192.86281183,0.00017,2]
[399581747,1766523040882,-151.0,0.00017,2]
[399581748,1766523040893,-153.089489,0.00017,2]
[399581749,1766523040903,-200.0,0.00017,2]
[399581750,1766523040912,-151.0,0.00017,2]
[399581751,1766523040922,-151.0,0.00017,2]
[399581752,1766523040931,-151.0,0.00017,2]
[399581753,1766523040940,-154.102555,0.00017,2]
[399581754,1766523040949,-188.233195,0.00017,2]
[399581755,1766523040959,-151.0,0.00017,2]
[399581756,1766523040969,-151.0,0.00017,2]
[399581757,1766523040979,-151.0,0.00017,2]
[399581758,1766523040988,-26.43718479,0.00017,2]
[399581759,1766523041000,-124.56281521,0.00017,2]
[399581760,1766523041010,-151.0,0.00017,2]
[399581761,1766523041019,-151.0,0.00017,2]
[399581762,1766523041028,-14.99218479,0.00017,2]
[399581763,1766523041039,-136.00781521,0.00017,2]
[399581764,1766523041048,-151.0,0.00017,2]
[399581765,1766523041058,-151.0,0.00017,2]
[399581766,1766523041067,-151.0,0.00017,2]
[399581768,1766523041080,-151.0,0.00017,2]
[399581770,1766523041089,-179.764153,0.00017,2]
[399581771,1766523041098,-120.54184829,0.00017,2]
[399581772,1766523041110,-59.22230471,0.00017,2]
[399581773,1766523041122,-179.764153,0.00017,2]
[399581774,1766523041131,-179.764153,0.00017,2]
[399581775,1766523041140,-151.0,0.00017,2]
[399581776,1766523041151,-151.0,0.00017,2]
[399581777,1766523041160,-416.351703,0.00017,2]
[399581778,1766523041170,-416.351703,0.00017,2]
[399581779,1766523041180,-416.351703,0.00017,2]
[399581780,1766523041189,-416.351703,0.00017,2]
[399581781,1766523041198,-151.0,0.00017,2]
[399581782,1766523041208,-155.310827,0.00017,2]
[399581783,1766523041217,-443.85292262,0.00017,2]
[399581784,1766523041228,-200.0,0.00017,2]
[399581785,1766523041238,-151.0,0.00017,2]
[399581786,1766523041247,-151.0,0.00017,2]
[399581787,1766523041256,-151.0,0.00017,2]
[399581788,1766523041266,-151.0,0.00017,2]
[399581789,1766523041275,-151.0,0.00017,2]
[399581790,1766523041285,-151.0,0.00017,2]
[399581791,1766523041294,-999.0,0.00017027,3]
[399581792,1766523041303,-200.0,0.0001717,2]
[399581793,1766523041313,-200.0,0.0001717,2]
[399581794,1766523041322,-200.0,0.0001717,2]
[399581795,1766523041331,-200.0,0.0001717,2]
[399581796,1766523041341,-1107.0,0.00017206,2]
[399581797,1766523041350,-151.0,0.00017252,2]
[399581798,1766523041360,-500.0,0.00017252,2]
[399581799,1766523041369,-165.82568429,0.00017252,2]
[399581800,1766523041379,-500.0,0.00017252,2]
[399581801,1766523041388,-500.0,0.00017252,2]
[399581802,1766523041398,-500.0,0.00017252,2]
[399581803,1766523041407,-500.0,0.00017252,2]
[399581804,1766523041416,-500.0,0.00017252,2]
[399581805,1766523041426,-500.0,0.00017252,2]
[399581806,1766523041435,-500.0,0.00017252,2]
[399581807,1766523041444,-500.0,0.00017252,2]
[399581808,1766523041453,-500.0,0.00017252,2]
[399581809,1766523041462,-500.0,0.00017252,2]
[399581810,1766523041471,-151.0,0.00017252,2]
[399581811,1766523041480,-574.12855637,0.00017252,2]
[399581812,1766523041490,-322.6107,0.00017252,2]
[399581813,1766523041499,-200.0,0.00017252,2]
[399581814,1766523041508,-207.4,0.00017252,2]
[399581815,1766523041517,-215.0738,0.00017252,2]
[399581816,1766523041527,-223.0315306,0.00017252,2]
[399581817,1766523041536,-242.30225937,0.00017252,2]
[399581818,1766523041545,-1816.39289611,0.00017265,2]
[399581819,1766523041558,-2243.95,0.00017265,2]
[399581820,1766523041573,-5863.50612559,0.00017265,2]
[399581830,1766523043098,-164.109919,0.00017,2]
[399581833,1766523043107,-164.109919,0.00017,2]
[399581841,1766523043460,-11682.66134869,0.00017265,2]
[399581842,1766523043470,-1107.0,0.00017272,2]
[399581843,1766523043480,-714.0,0.00017304,2]
[399581844,1766523043490,-200.0,0.00017342,2]
[399581845,1766523043500,-200.0,0.00017342,2]
[399581846,1766523043509,-200.0,0.00017342,2]
[399581847,1766523043519,-200.0,0.00017342,2]
[399581848,1766523043528,-500.0,0.00017353,2]
[399581849,1766523043537,-1107.0,0.00017388,2]
[399581850,1766523043547,-714.0,0.0001741,2]
[399581851,1766523043556,-1107.0,0.00017454,2]
[399581852,1766523043565,-1500.0,0.00017468,2]
[399581853,1766523043575,-1500.0,0.00017468,2]
[399581855,1766523043584,-150.0,0.00017473,2]
[399581856,1766523043593,-150.0,0.00017473,2]
[399581857,1766523043603,-714.0,0.00017492,2]
[399581858,1766523043612,-1107.0,0.00017505,2]
[399581860,1766523043622,-200.0,0.00017515,2]
[399581862,1766523043631,-200.0,0.00017515,2]
[399581863,1766523043640,-200.0,0.00017515,2]
[399581864,1766523043649,-200.0,0.00017515,2]
[399581865,1766523043659,-1000.0,0.00017521,2]
[399581866,1766523043668,-726.54246888,0.00017521,2]
[399581867,1766523043678,-500.0,0.00017521,2]
[399581868,1766523043688,-1000.0,0.00017521,2]
[399581869,1766523043697,-1000.0,0.00017521,2]
[399581870,1766523043706,-1000.0,0.00017521,2]
[399581871,1766523043715,-500.0,0.00017521,2]
[399581872,1766523043724,-500.0,0.00017521,2]
[399581873,1766523043734,-1000.0,0.00017521,2]
[399581874,1766523043744,-711.71097103,0.00017521,2]
[399581875,1766523043753,-1000.0,0.00017521,2]
[399581876,1766523043763,-575.79192848,0.00017521,2]
[399581877,1766523043772,-1000.0,0.00017521,2]
[399581878,1766523043782,-479.05040621,0.00017521,2]
[399581879,1766523043792,-310.71387342,0.00017521,2]
[399581880,1766523043801,-500.0,0.00017521,2]
[399581881,1766523043810,-1000.0,0.00017521,2]
[399581882,1766523043820,-1000.0,0.00017521,2]
[399581883,1766523043829,-1000.0,0.00017521,2]
[399581884,1766523043839,-500.0,0.00017521,2]
[399581885,1766523043848,-500.0,0.00017521,2]
[399581886,1766523043859,-722.04159557,0.00017521,2]
[399581887,1766523043869,-511.36256137,0.00017521,2]
[399581888,1766523043878,-500.0,0.00017521,2]
[399581889,1766523043887,-500.0,0.00017521,2]
[399581890,1766523043897,-297.26,0.00017534,2]
[399581891,1766523043906,-1107.0,0.0001755,2]
[399581892,1766523043916,-34974.1067372,0.00017606,2]
[399581893,1766523043925,-151.61,0.00017606,2]
[399581894,1766523043935,-1107.0,0.00017616,2]
[399581895,1766523043946,-1030.3798497,0.00017636,2]
[399581896,1766523043955,-1107.0,0.00017659,2]
[399581897,1766523043964,-200.0,0.0001769,2]
[399581898,1766523043974,-200.0,0.0001769,2]
[399581899,1766523043984,-200.0,0.0001769,2]
[399581900,1766523043993,-200.0,0.0001769,2]
[399581901,1766523044003,-1107.0,0.00017696,2]
[399581902,1766523044013,-666.0,0.00017753,2]
[399581903,1766523044022,-151.0,0.000178,2]
[399581904,1766523044032,-595.37131296,0.000178,2]
[399581905,1766523044041,-1107.0,0.00017812,2]
[399581906,1766523044051,-1107.0,0.00017844,2]
[399581907,1766523044060,-1107.0,0.00017855,2]
[399581908,1766523044070,-159.52,0.0001788,2]
[399581909,1766523044084,-157.53213744,0.00017969,2]
[399581910,1766523044093,-500.0,0.00017971,2]
[399581911,1766523044103,-37231.0949018,0.00017972,2]
[399581912,1766523044112,-69061.1690427,0.00017972,2]
[399581913,1766523044126,-345.7829875,0.00017972,2]
[399581914,1766523044137,-2365.08758627,0.00017972,2]
[399581915,1766523044152,-1001.9863755,0.00017972,2]
[399581916,1766523044190,-56373.43297052,0.00017972,2]
[399581917,1766523044208,-34153.95741891,0.00017972,2]
[399581918,1766523044218,-151.0,0.00017972,2]
[399581919,1766523044229,-151.0,0.00017972,2]
[399581920,1766523044239,-151.0,0.00017972,2]
[399581921,1766523044249,-151.0,0.00017972,2]
[399581922,1766523044259,-151.0,0.00017972,2]
[399581923,1766523044269,-2000.0,0.00018016,2]
[399581924,1766523044279,-2000.0,0.00018016,2]
[399581925,1766523044288,-233.02301459,0.00018021,2]
[399581926,1766523044299,-209.86454372,0.00018021,2]
[399581927,1766523044309,-7803.7780373,0.00018047,2]
[399581928,1766523044320,-175.89091811,0.00018068,2]
[399581929,1766523044329,-500.0,0.00018068,2]
[399581930,1766523044339,-500.0,0.00018068,2]
[399581931,1766523044350,-500.0,0.00018068,2]
[399581932,1766523044360,-229.9088208,0.00018085,2]
[399581933,1766523044371,-297.26,0.00018139,2]
[399581934,1766523044381,-185.0,0.00018344,2]
[399581935,1766523044391,-151.0,0.00018348,2]
[399581936,1766523044401,-617.40005154,0.00018348,2]
[399581937,1766523044411,-166.66,0.00018478,2]
[399581938,1766523044421,-8307.3801679,0.00018495,2]
[399581939,1766523044430,-30565.29901996,0.00018495,2]
[399581940,1766523044443,-1620.14770193,0.00018495,2]
[399581941,1766523044455,-1599.7566905,0.00018495,2]
[399581942,1766523044467,-1825.84649464,0.00018495,2]
[399581943,1766523044479,-826.42128257,0.00018495,2]
[399581944,1766523044490,-2351.0,0.0001853,2]
[399581945,1766523044500,-2500.0,0.00018564,2]
[399581946,1766523044510,-856.32177659,0.00018564,2]
[399581947,1766523044519,-151.0,0.00018621,2]
[399581948,1766523044529,-334.5472959,0.00018621,2]
[399581949,1766523044539,-325.36068306,0.00018694,2]
[399581950,1766523044549,-297.26,0.00018743,2]
[399581951,1766523044559,-150.94,0.000188,2]
[399581952,1766523044575,-150.94,0.000188,2]
[399581953,1766523044585,-150.94,0.000188,2]
[399581954,1766523044594,-150.94,0.000188,2]
[399581955,1766523044604,-150.94,0.000188,2]
[399581956,1766523044614,-150.94,0.000188,2]
[399581957,1766523044624,-150.94,0.000188,2]
[399581958,1766523044634,-150.94,0.000188,2]
[399581959,1766523044644,-150.94,0.000188,2]
[399581960,1766523044654,-150.94,0.000188,2]
[399581961,1766523044664,-150.94,0.000188,2]
[399581962,1766523044675,-150.94,0.000188,2]
[399581963,1766523044685,-150.94,0.000188,2]
[399581964,1766523044696,-150.94,0.000188,2]
[399581965,1766523044706,-150.94,0.000188,2]
[399581966,1766523044716,-150.94,0.000188,2]
[399581967,1766523044727,-150.94,0.000188,2]
[399581968,1766523044737,-150.94,0.000188,2]
[399581969,1766523044748,-150.94,0.000188,2]
[399581970,1766523044759,-150.94,0.000188,2]
[399581971,1766523044779,-150.94,0.000188,2]
[399581972,1766523044799,-150.94,0.000188,2]
[399581973,1766523044820,-150.94,0.000188,2]
[399581974,1766523044839,-150.94,0.000188,2]
[399581975,1766523044851,-150.94,0.000188,2]
[399581976,1766523044861,-150.94,0.000188,2]
[399581977,1766523044871,-150.94,0.000188,2]
[399581978,1766523044882,-150.94,0.000188,2]
[399581979,1766523044893,-250.0,0.00018853,2]
[399581980,1766523044903,-166.66,0.00018867,2]
[399581981,1766523044914,-151.0,0.00018896,2]
[399581982,1766523044924,-640.24385345,0.00018896,2]
[399581983,1766523044935,-150.94,0.0001899,2]
[399581984,1766523044945,-150.94,0.0001899,2]
[399581985,1766523044955,-268.32268255,0.00019,2]
[399581986,1766523044970,-23684.20970957,0.00019,2]
[399581987,1766523044996,-276.93361131,0.00019,2]
[399581988,1766523045009,-358.46845774,0.00019,2]
[399581989,1766523045022,-35708.77727969,0.00019,2]
[399581990,1766523045034,-47652.14521396,0.00019,2]
[399581991,1766523045044,-300.0,0.00019,2]
[399581992,1766523045054,-151.0,0.00019,2]
[399581993,1766523045064,-151.0,0.00019,2]
[399581994,1766523045078,-151.0,0.00019,2]
[399581995,1766523045088,-151.0,0.00019,2]
[399581996,1766523045098,-151.0,0.00019,2]
[399581997,1766523045108,-151.0,0.00019,2]
[399581998,1766523045120,-151.0,0.00019,2]
[399581999,1766523045130,-151.0,0.00019,2]
[399582000,1766523045140,-151.0,0.00019,2]
[399582001,1766523045151,-151.0,0.00019,2]
[399582002,1766523045161,-157.325048,0.00019,2]
[399582003,1766523045171,-151.0,0.00019,2]
[399582004,1766523045182,-151.0,0.00019,2]
[399582005,1766523045192,-151.0,0.00019,2]
[399582006,1766523045202,-151.0,0.00019,2]
[399582007,1766523045213,-151.0,0.00019,2]
[399582008,1766523045223,-179.764153,0.00019,2]
[399582009,1766523045233,-179.764153,0.00019,2]
[399582010,1766523045243,-179.764153,0.00019,2]
[399582011,1766523045253,-179.764153,0.00019,2]
[399582012,1766523045263,-151.0,0.00019,2]
[399582013,1766523045273,-416.351703,0.00019,2]
[399582014,1766523045284,-416.351703,0.00019,2]
[399582015,1766523045295,-416.351703,0.00019,2]
[399582016,1766523045305,-416.351703,0.00019,2]
[399582017,1766523045315,-151.0,0.00019,2]
[399582018,1766523045329,-151.0,0.00019,2]
[399582019,1766523045339,-151.0,0.00019,2]
[399582020,1766523045349,-151.0,0.00019,2]
[399582021,1766523045359,-151.0,0.00019,2]
[399582022,1766523045371,-233.544954,0.00019,2]
[399582023,1766523045380,-164.109919,0.00019,2]
[399582024,1766523045390,-164.109919,0.00019,2]
[399582025,1766523045400,-500.0,0.00019019,2]
[399582026,1766523045410,-4047.0,0.0001902,2]
[399582027,1766523045420,-528.5,0.00019037,2]
[399582028,1766523045431,-317.19636672,0.00019082,2]
[399582029,1766523045442,-1500.0,0.00019112,2]
[399582030,1766523045453,-152.0,0.0001912,2]
[399582031,1766523045465,-155.29267278,0.0001912,2]
[399582032,1766523045475,-152.0,0.0001912,2]
[399582033,1766523045486,-286.28633932,0.0001912,2]
[399582034,1766523045495,-152.0,0.0001912,2]
[399582035,1766523045505,-152.0,0.0001912,2]
[399582036,1766523045516,-152.0,0.0001912,2]
[399582037,1766523045527,-152.0,0.0001912,2]
[399582038,1766523045536,-154.0,0.0001912,2]
[399582039,1766523045547,-152.0,0.0001912,2]
[399582040,1766523045557,-153.84928669,0.0001912,2]
[399582041,1766523045567,-152.0,0.0001912,2]
[399582042,1766523045576,-152.0,0.0001912,2]
[399582043,1766523045586,-294.63189932,0.0001912,2]
[399582044,1766523045595,-809.4633545,0.00019176,2]
[399582045,1766523045605,-151.0,0.00019178,2]
[399582046,1766523045615,-151.0,0.00019178,2]
[399582047,1766523045624,-151.0,0.00019178,2]
[399582048,1766523045634,-199.62347,0.00019178,2]
[399582049,1766523045645,-199.62347,0.00019178,2]
[399582050,1766523045655,-199.62347,0.00019178,2]
[399582051,1766523045666,-199.62347,0.00019178,2]
[399582052,1766523045676,-199.62347,0.00019178,2]
[399582053,1766523045689,-199.62347,0.00019178,2]
[399582054,1766523045699,-199.62347,0.00019178,2]
[399582055,1766523045709,-199.62347,0.00019178,2]
[399582056,1766523045719,-151.0,0.00019178,2]
[399582057,1766523045730,-151.0,0.00019178,2]